fUSD/lending_fUSD_20240126
["ID","MTS","AMOUNT","RATE_DAILY","PERIOD"]
[312820732,1706296263378,-5000.0,0.00048647,4]
[312820733,1706296263388,-822.0,0.0004869,2]
[312820734,1706296263397,-746.0,0.0004869,2]
[312820735,1706296263406,-23744.2710487,0.000487,2]
[312820736,1706296263416,-750.56,0.0004875,2]
[312820737,1706296263426,-151.0126,0.00048798,29]
[312820738,1706296263437,-151.0127,0.00048798,18]
[312820739,1706296263448,-150.0,0.00048828,120]
[312820740,1706296263457,-675.59691683,0.00048862,29]
[312820741,1706296263467,-905.30281032,0.00048922,27]
[312820742,1706296263478,-150.57471312,0.00048959,40]
[312820743,1706296263487,-200.0,0.00048987,17]
[312820744,1706296263496,-50000.0,0.00049,29]
[312820745,1706296263506,-739.45649644,0.00049,30]
[312820746,1706296263515,-250.0,0.00049,42]
[312820747,1706296263525,-400.0,0.00049,6]
[312820748,1706296263536,-5099.94,0.00049,30]
[312820749,1706296263545,-557.70059377,0.00049,30]
[312820750,1706296263554,-250.0,0.00049,60]
[312820751,1706296263565,-1000.0,0.00049,4]
[312820752,1706296263574,-732.79442001,0.00049,120]
[312820753,1706296263584,-300.0,0.00049,50]
[312820754,1706296263594,-1016.48102384,0.00049,2]
[312820755,1706296263603,-1000.0,0.00049,120]
[312820756,1706296263612,-1150.0,0.00049,3]
[312820757,1706296263621,-150.0,0.00049,20]
[312820758,1706296263630,-1649.0,0.0004909,2]
[312820759,1706296263640,-1520.0,0.0004909,2]
[312820760,1706296263651,-25000.0,0.000491,2]
[312820761,1706296263660,-25000.0,0.000492,2]
[312820762,1706296263669,-270485.60768516,0.00049203,2]
[312820763,1706296263678,-5000.0,0.00049235,4]
[312820764,1706296263686,-1000.0,0.000493,2]
[312820765,1706296263695,-11329.7253186,0.00049315,7]
[312820766,1706296263704,-286.53157451,0.00049315,7]
[312820767,1706296263713,-5228.35966107,0.00049315,7]
[312820768,1706296263723,-1000.0,0.00049315,15]
[312820769,1706296263732,-1000.0,0.00049315,15]
[312820770,1706296263741,-1000.0,0.00049315,15]
[312820771,1706296263750,-1000.0,0.00049315,15]
[312820772,1706296263759,-1000.0,0.00049315,15]
[312820773,1706296263768,-1000.0,0.00049315,15]
[312820774,1706296263777,-1000.0,0.00049315,15]
[312820775,1706296263787,-1000.0,0.00049315,15]
[312820776,1706296263797,-1000.0,0.00049315,15]
[312820777,1706296263808,-1000.0,0.00049315,15]
[312820778,1706296263819,-1000.0,0.00049315,15]
[312820779,1706296263829,-1000.0,0.00049315,15]
[312820780,1706296263838,-1000.0,0.00049315,15]
[312820781,1706296263847,-1000.0,0.00049315,15]
[312820782,1706296263856,-1000.0,0.00049315,15]
[312820783,1706296263865,-1000.0,0.00049315,15]
[312820784,1706296263875,-1000.0,0.00049315,15]
[312820785,1706296263884,-1000.0,0.00049315,15]
[312820786,1706296263894,-1000.0,0.00049315,15]
[312820787,1706296263905,-1000.0,0.00049315,15]
[312820788,1706296263915,-1000.0,0.00049315,15]
[312820789,1706296263924,-1000.0,0.00049315,15]
[312820790,1706296263934,-1000.0,0.00049315,15]
[312820791,1706296263943,-1000.0,0.00049315,15]
[312820792,1706296263954,-1000.0,0.00049315,15]
[312820793,1706296264034,-1000.0,0.00049315,15]
[312820794,1706296264052,-1000.0,0.00049315,15]
[312820795,1706296264062,-1000.0,0.00049315,15]
[312820796,1706296264073,-1000.0,0.00049315,15]
[312820797,1706296264083,-1059.0,0.00049315,15]
[312820798,1706296264093,-522.0,0.00049315,15]
[312820799,1706296264102,-200.0,0.00049315,60]
[312820800,1706296264111,-163.76,0.00049315,2]
[312820801,1706296264121,-366.04607581,0.00049397,9]
[312820802,1706296264131,-284.08397793,0.00049397,9]
[312820803,1706296264141,-1002.81674113,0.000494,4]
[312820804,1706296264151,-150.0,0.00049459,2]
[312820805,1706296264160,-151.0126,0.00049498,29]
[312820806,1706296264169,-400.0,0.000495,7]
[312820807,1706296264179,-7210.51122067,0.000495,2]
[312820808,1706296264188,-154.0,0.000495,60]
[312820809,1706296264197,-10085.4036,0.0004968,120]
[312820810,1706296264206,-2416.0,0.00049682,120]
[312820811,1706296264215,-348.25071614,0.000497,30]
[312820812,1706296264225,-300.0,0.000497,30]
[312820813,1706296264234,-930471.84527432,0.000497,61]
[312820814,1706296264243,-1998.1,0.000497,2]
[312820815,1706296264252,-150.57471312,0.00049704,43]
[312820816,1706296264261,-2745.15371042,0.00049742,5]
[312820817,1706296264270,-151.0126,0.00049798,29]
[312820818,1706296264279,-528.20976727,0.000498,120]
[312820819,1706296264289,-1000.0,0.000498,60]
[312820820,1706296264298,-5000.0,0.00049824,6]
[312820821,1706296264307,-1553.0,0.0004989,2]
[312820822,1706296264316,-98549.46807619,0.000499,120]
[312820823,1706296264325,-187006.0,0.000499,35]
[312820824,1706296264334,-113703.91742733,0.000499,5]
[312820825,1706296264343,-365728.2911001,0.000499,5]
[312820826,1706296264352,-32026.17826868,0.000499,5]
[312820827,1706296264361,-200.0,0.00049987,19]
[312820828,1706296264371,-200.0,0.00049987,30]
[312820829,1706296264380,-6305.0,0.0004999,2]
[312820830,1706296264390,-5821.0,0.0004999,2]
[312820831,1706296264400,-191.51351607,0.00049999,120]
[312820832,1706296264409,-500.0,0.00049999,120]
[312820833,1706296264418,-339.98521558,0.00049999,120]
[312820834,1706296264427,-329.03948328,0.00049999,120]
[312820835,1706296264436,-403.40823675,0.00049999,120]
[312820836,1706296264445,-500.0,0.00049999,120]
[312820837,1706296264454,-500.0,0.00049999,120]
[312820838,1706296264463,-638.4666599,0.00049999,120]
[312820839,1706296264471,-500.0,0.00049999,120]
[312820840,1706296264480,-500.0,0.00049999,120]
[312820841,1706296264489,-500.0,0.00049999,120]
[312820842,1706296264498,-500.0,0.00049999,120]
[312820843,1706296264507,-500.0,0.00049999,120]
[312820844,1706296264515,-500.0,0.00049999,120]
[312820845,1706296264524,-158.32337166,0.00049999,120]
[312820846,1706296264534,-500.0,0.00049999,120]
[312820847,1706296264543,-500.0,0.00049999,120]
[312820848,1706296264552,-500.0,0.00049999,120]
[312820849,1706296264561,-500.0,0.00049999,120]
[312820850,1706296264570,-500.0,0.00049999,120]
[312820851,1706296264578,-500.0,0.00049999,120]
[312820852,1706296264587,-500.0,0.00049999,120]
[312820853,1706296264596,-500.0,0.00049999,120]
[312820854,1706296264605,-500.0,0.00049999,120]
[312820855,1706296264614,-500.0,0.00049999,120]
[312820856,1706296264623,-205.7016121,0.00049999,120]
[312820857,1706296264633,-500.0,0.00049999,120]
[312820858,1706296264643,-350.0,0.00049999,120]
[312820859,1706296264652,-250.0,0.00049999,120]
[312820860,1706296264661,-50000.0,0.0005,40]
[312820861,1706296264670,-23651.41169489,0.0005,4]
[312820862,1706296264679,-6869.12083095,0.0005,4]
[312820863,1706296264688,-400.0,0.0005,8]
[312820864,1706296264697,-510.99145517,0.0005,4]
[312820865,1706296264706,-178.04753046,0.0005,120]
[312820866,1706296264715,-4117.0,0.0005,2]
[312820867,1706296264724,-2382.83431675,0.0005,14]
[312820868,1706296264733,-192.291184,0.0005,120]
[312820869,1706296264742,-6905.10873599,0.0005,30]
[312820870,1706296264752,-291.22583684,0.0005,30]
[312820871,1706296264761,-185.35346524,0.0005,30]
[312820872,1706296264770,-500.0,0.0005,7]
[312820873,1706296264778,-500.0,0.0005,7]
[312820874,1706296264788,-250.0,0.0005,120]
[312820875,1706296264797,-264.33092943,0.0005,120]
[312820876,1706296264806,-2000.0,0.0005,14]
[312820877,1706296264816,-50385.819378,0.0005,120]
[312820878,1706296264825,-669.029414,0.0005,30]
[312820879,1706296264835,-623.07044682,0.0005,120]
[312820880,1706296264845,-33082.3278489,0.0005,30]
[312820881,1706296264854,-1021.62,0.0005,30]
[312820882,1706296264863,-1017.42391,0.0005,30]
[312820883,1706296264873,-162592.07228518,0.0005,2]
[312820884,1706296264882,-155.34802841,0.0005,4]
[312820885,1706296264892,-155.53959693,0.0005,4]
[312820886,1706296264905,-5462.39650274,0.0005,14]
[312820887,1706296264915,-560.0,0.0005,4]
[312820888,1706296264925,-2956.2494956,0.0005,4]
[312820889,1706296264934,-215.00950599,0.0005,4]
[312820890,1706296264944,-229.39887849,0.0005,4]
[312820891,1706296264953,-337.44125035,0.0005,4]
[312820892,1706296264963,-1000.0,0.0005,120]
[312820893,1706296264973,-2289.3578039,0.0005,4]
[312820894,1706296264982,-327.38307863,0.0005,120]
[312820895,1706296264992,-4903.0,0.0005,20]
[312820896,1706296265002,-10000.0,0.0005,60]
[312820897,1706296265015,-23770.0,0.0005,10]
[312820898,1706296265028,-2425.60232931,0.0005,30]
[312820899,1706296265037,-1000.0,0.0005,120]
[312820900,1706296265047,-26377.59215585,0.0005,30]
[312820901,1706296265057,-25479.4231732,0.0005,60]
[312820902,1706296265067,-2124.22,0.0005,32]
[312820903,1706296265077,-300.0,0.0005,51]
[312820904,1706296265087,-5846.8548847,0.0005,2]
[312820905,1706296265097,-200.0,0.0005,30]
[312820906,1706296265106,-808.22032076,0.0005,2]
[312820907,1706296265115,-200.0,0.0005,2]
[312820908,1706296265125,-19165.50503676,0.0005,2]
[312820909,1706296265134,-7718.7367897,0.0005,7]
[312820910,1706296265145,-305.7032845,0.0005,2]
[312820911,1706296265154,-478.19,0.0005,120]
[312820912,1706296265164,-5000.0,0.0005,120]
[312820913,1706296265174,-29089.0,0.0005,7]
[312820914,1706296265183,-300.0,0.0005,27]
[312820915,1706296265192,-200.0,0.0005,27]
[312820916,1706296265202,-150.0,0.0005,21]
[312820917,1706296265212,-634.0,0.0005,30]
[312820918,1706296265222,-18078.0,0.0005,30]
[312820919,1706296265231,-5000.0,0.0005,120]
[312820920,1706296265241,-150.0,0.0005,27]
[312820921,1706296265250,-151.0127,0.00050198,29]
[312820922,1706296265261,-160.47216529,0.00050213,3]
[312820923,1706296265270,-5000.0,0.00050375,120]
[312820924,1706296265280,-5000.0,0.00050375,120]
[312820925,1706296265290,-150.0,0.00050411,30]
[312820926,1706296265299,-5000.0,0.00050412,6]
[312820927,1706296265309,-150.57471312,0.00050449,46]
[312820928,1706296265318,-150.0,0.00050469,2]
[312820929,1706296265406,-151.0126,0.00050498,59]
[312820930,1706296265417,-400.0,0.000505,9]
[312820931,1706296265426,-2911.90026868,0.000505,30]
[312820932,1706296265435,-1307.0,0.000505,30]
[312820933,1706296265445,-200.0,0.000505,28]
[312820934,1706296265454,-402.17,0.00050685,30]
[312820935,1706296265464,-500.39,0.00050685,30]
[312820936,1706296265473,-1024.78,0.00050685,2]
[312820937,1706296265482,-1514.3854008,0.000507,30]
[312820938,1706296265491,-5000.0,0.0005075,120]
[312820939,1706296265500,-5000.0,0.0005075,120]
[312820940,1706296265510,-2084.97012239,0.00050773,35]
[312820941,1706296265519,-151.0126,0.00050798,59]
[312820942,1706296265529,-6092.02425308,0.0005094,31]
[312820943,1706296265538,-1658.00299899,0.0005094,37]
[312820944,1706296265547,-200.0,0.00050987,41]
[312820945,1706296265556,-200.0,0.00050987,31]
[312820946,1706296265565,-2169.63314547,0.00050993,23]
[312820947,1706296265575,-50000.0,0.00051,41]
[312820948,1706296265584,-400.0,0.00051,10]
[312820949,1706296265594,-250.0,0.00051,43]
[312820950,1706296265603,-1500.0,0.00051,30]
[312820951,1706296265613,-250.0,0.00051,120]
[312820952,1706296265622,-14825.76981861,0.00051,7]
[312820953,1706296265992,-335.30000129,0.00022899,2]
[312820954,1706296266008,-2858.77254265,0.00022899,2]
[312820955,1706296266018,-500.0,0.00032877,2]
[312820956,1706296266028,-150.77,0.00041,2]
[312820957,1706296266037,-150.77,0.00041,2]
[312820958,1706296266047,-150.77,0.00041,2]
[312820959,1706296266056,-150.77,0.00041,2]
[312820960,1706296266065,-150.77,0.00041,2]
[312820961,1706296266076,-150.77,0.00041,2]
[312820962,1706296266086,-150.77,0.00041,2]
[312820963,1706296266095,-150.77,0.00041,2]
[312820964,1706296266104,-1761.34475734,0.00051,7]
[312820965,1706296266126,-760.16025202,0.00022899,2]
[312820966,1706296266136,-150.77,0.00041,2]
[312820967,1706296266146,-22566.48542405,0.00051,7]
[312820968,1706296266155,-1010.0,0.00051,120]
[312820969,1706296266164,-300.0,0.00051,52]
[312820970,1706296266174,-265.0,0.00051,30]
[312820971,1706296266183,-5000.0,0.00051,6]
[312820972,1706296266192,-300.0,0.00051,29]
[312820973,1706296266202,-200.0,0.00051,29]
[312820974,1706296266211,-1998.1,0.00051,2]
[312820975,1706296266220,-150.0,0.00051,29]
[312820976,1706296266230,-175.0,0.00051,120]
[312820977,1706296266239,-750.56,0.00051014,2]
[312820978,1706296266248,-366.04607581,0.00051085,11]
[312820979,1706296266258,-284.08397793,0.00051085,11]
[312820980,1706296266267,-5000.0,0.00051125,120]
[312820981,1706296266276,-5000.0,0.00051125,120]
[312820982,1706296266287,-150.57471312,0.00051193,49]
[312820983,1706296266296,-151.0127,0.00051198,29]
[312820984,1706296266305,-306.60095594,0.0005128,22]
[312820985,1706296266315,-306.60095594,0.0005128,19]
[312820986,1706296266324,-306.60095594,0.0005128,18]
[312820987,1706296266334,-306.60095594,0.0005128,21]
[312820988,1706296266343,-306.60095594,0.0005128,19]
[312820989,1706296266352,-306.60095594,0.0005128,18]
[312820990,1706296266362,-306.60095594,0.0005128,21]
[312820991,1706296266371,-306.60095594,0.0005128,21]
[312820992,1706296266380,-306.60095594,0.0005128,20]
[312820993,1706296266389,-306.60095594,0.0005128,22]
[312820994,1706296266482,-306.60095594,0.0005128,22]
[312820995,1706296266491,-306.60095594,0.0005128,19]
[312820996,1706296266500,-306.60095594,0.0005128,19]
[312820997,1706296266510,-306.60095594,0.0005128,21]
[312820998,1706296266519,-306.60095594,0.0005128,21]
[312820999,1706296266529,-306.60095594,0.0005128,21]
[312821000,1706296266538,-306.60095594,0.0005128,20]
[312821001,1706296266547,-306.60095594,0.0005128,18]
[312821002,1706296266556,-306.60095594,0.0005128,20]
[312821003,1706296266565,-306.60095594,0.0005128,18]
[312821004,1706296266574,-306.60095594,0.0005128,19]
[312821005,1706296266583,-306.60095594,0.0005128,22]
[312821006,1706296266596,-306.60095594,0.0005128,19]
[312821007,1706296266606,-306.60095594,0.0005128,22]
[312821008,1706296266616,-306.60095594,0.0005128,21]
[312821009,1706296266625,-306.60095594,0.0005128,20]
[312821010,1706296266635,-306.60095594,0.0005128,20]
[312821011,1706296266645,-306.60095594,0.0005128,18]
[312821012,1706296266654,-306.60095594,0.0005128,18]
[312821013,1706296266663,-306.60095594,0.0005128,18]
[312821014,1706296266673,-306.60095594,0.0005128,20]
[312821015,1706296266682,-306.60095594,0.0005128,20]
[312821016,1706296266692,-306.60095594,0.0005128,18]
[312821017,1706296266701,-306.60095594,0.0005128,20]
[312821018,1706296266711,-306.60095594,0.0005128,22]
[312821019,1706296266720,-306.60095594,0.0005128,20]
[312821020,1706296266729,-306.60095594,0.0005128,19]
[312821021,1706296266739,-306.60095594,0.0005128,21]
[312821022,1706296266748,-306.60095594,0.0005128,20]
[312821023,1706296266758,-306.60095594,0.0005128,18]
[312821024,1706296266767,-306.60095594,0.0005128,22]
[312821025,1706296266776,-306.60095594,0.0005128,22]
[312821026,1706296266785,-306.60095594,0.0005128,18]
[312821027,1706296266794,-306.60095594,0.0005128,18]
[312821028,1706296266804,-306.60095594,0.0005128,19]
[312821029,1706296266813,-306.60095594,0.0005128,21]
[312821030,1706296266822,-306.60095594,0.0005128,19]
[312821031,1706296266832,-306.60095594,0.0005128,19]
[312821032,1706296266841,-306.60095594,0.0005128,20]
[312821033,1706296266850,-306.60095594,0.0005128,22]
[312821034,1706296266860,-306.60095594,0.0005128,22]
[312821035,1706296266870,-306.60095594,0.0005128,18]
[312821036,1706296266880,-306.60095594,0.0005128,22]
[312821037,1706296266889,-306.60095594,0.0005128,22]
[312821038,1706296266900,-306.60095594,0.0005128,18]
[312821039,1706296266913,-306.60095594,0.0005128,22]
[312821040,1706296266922,-306.60095594,0.0005128,22]
[312821041,1706296266932,-306.60095594,0.0005128,19]
[312821042,1706296266942,-306.60095594,0.0005128,22]
[312821043,1706296266953,-306.60095594,0.0005128,18]
[312821044,1706296266962,-306.60095594,0.0005128,20]
[312821045,1706296266972,-306.60095594,0.0005128,20]
[312821046,1706296266982,-306.60095594,0.0005128,20]
[312821047,1706296266991,-306.60095594,0.0005128,19]
[312821048,1706296267001,-306.60095594,0.0005128,21]
[312821049,1706296267010,-306.60095594,0.0005128,22]
[312821050,1706296267019,-306.60095594,0.0005128,20]
[312821051,1706296267033,-306.60095594,0.0005128,22]
[312821052,1706296267052,-306.60095594,0.0005128,20]
[312821053,1706296267067,-306.60095594,0.0005128,19]
[312821054,1706296267086,-306.60095594,0.0005128,18]
[312821055,1706296267104,-306.60095594,0.0005128,18]
[312821056,1706296267118,-306.60095594,0.0005128,22]
[312821057,1706296267136,-306.60095594,0.0005128,20]
[312821058,1706296267153,-306.60095594,0.0005128,20]
[312821059,1706296267170,-306.60095594,0.0005128,18]
[312821060,1706296267187,-306.60095594,0.0005128,20]
[312821061,1706296267203,-306.60095594,0.0005128,18]
[312821062,1706296267220,-306.60095594,0.0005128,19]
[312821063,1706296267241,-306.60095594,0.0005128,20]
[312821064,1706296267254,-206.0,0.00051291,44]
[312821065,1706296267269,-2745.15371042,0.00051321,14]
[312821066,1706296267286,-1624.61368495,0.00051468,2]
[312821067,1706296267299,-150.0,0.00051478,2]
[312821068,1706296267314,-151.0126,0.00051498,59]
[312821069,1706296267329,-400.0,0.000515,11]
[312821070,1706296267344,-1500.0,0.000515,30]
[312821071,1706296267358,-200.0,0.000515,90]
[312821072,1706296267373,-5000.0,0.000515,60]
[312821073,1706296267387,-5000.0,0.000515,120]
[312821074,1706296267402,-200.0,0.000515,29]
[312821075,1706296267417,-5000.0,0.000515,120]
[312821076,1706296267432,-1065.03,0.00051557,120]
[312821077,1706296267446,-2500.000001,0.000516,120]
[312821078,1706296267461,-2100.0,0.00051777,7]
[312821079,1706296267476,-151.0126,0.00051798,59]
[312821080,1706296267490,-3980.224598,0.00051815,120]
[312821081,1706296267504,-8760.57156777,0.00051848,31]
[312821082,1706296267519,-5000.0,0.00051875,120]
[312821083,1706296267533,-5000.0,0.00051875,120]
[312821084,1706296267547,-3488.15490041,0.000519,30]
[312821085,1706296267564,-100000.0,0.000519,30]
[312821086,1706296267578,-150.57471312,0.00051938,51]
[312821087,1706296267591,-200.0,0.00051987,43]
[312821088,1706296267601,-200.0,0.00051987,33]
[312821089,1706296267610,-75959.77031372,0.0005199,7]
[312821090,1706296267620,-1444.0,0.0005199,2]
[312821091,1706296267630,-1333.0,0.0005199,2]
[312821092,1706296267639,-50000.0,0.00052,42]
[312821093,1706296267649,-2089.10649731,0.00052,2]
[312821094,1706296267658,-30212.19994602,0.00052,2]
[312821095,1706296267669,-10419.67996821,0.00052,2]
[312821096,1706296267678,-160.0,0.00052,120]
[312821097,1706296267688,-1500.0,0.00052,30]
[312821098,1706296267698,-160.0,0.00052,120]
[312821099,1706296267708,-250.0,0.00052,120]
[312821100,1706296267717,-319.39370691,0.00052,30]
[312821101,1706296267727,-163.39791318,0.00052,120]
[312821102,1706296267737,-335.0,0.00052,120]
[312821103,1706296267747,-498.62508235,0.00052,30]
[312821104,1706296267757,-535220.86,0.00052,21]
[312821105,1706296267766,-300.0,0.00052,53]
[312821106,1706296267776,-300.0,0.00052,5]
[312821107,1706296267785,-300.0,0.00052,5]
[312821108,1706296267795,-1000.0,0.00052,120]
[312821109,1706296267804,-5000.0,0.00052,120]
[312821110,1706296267814,-300.0,0.00052,30]
[312821111,1706296268018,-200.0,0.00052,30]
[312821112,1706296268037,-26871.20094871,0.00052,120]
[312821113,1706296268057,-1574.94701494,0.00052,2]
[312821114,1706296268070,-150.0,0.00052,30]
[312821115,1706296268080,-381.81599951,0.00052054,120]
[312821116,1706296268090,-150.0,0.00052054,120]
[312821117,1706296268100,-150.0,0.00052055,30]
[312821118,1706296268111,-150.0,0.00052055,30]
[312821119,1706296268121,-150.0,0.00052055,30]
[312821120,1706296268131,-150.0,0.00052055,30]
[312821121,1706296268142,-150.0,0.00052055,60]
[312821122,1706296268152,-409.34,0.00052055,30]
[312821123,1706296268162,-294.89,0.00052055,30]
[312821124,1706296268171,-548.29,0.00052055,30]
[312821125,1706296268181,-150.0,0.00052055,30]
[312821126,1706296268190,-150.0,0.00052055,30]
[312821127,1706296268199,-409.34,0.00052055,30]
[312821128,1706296268209,-150.0,0.00052055,60]
[312821129,1706296268219,-150.0,0.00052055,30]
[312821130,1706296268228,-150.0,0.00052055,30]
[312821131,1706296268237,-150.0,0.00052055,30]
[312821132,1706296268247,-294.89,0.00052055,30]
[312821133,1706296268257,-419.27,0.00052055,30]
[312821134,1706296268266,-150.0,0.00052055,30]
[312821135,1706296268275,-419.27,0.00052055,30]
[312821136,1706296268284,-150.0,0.00052055,30]
[312821137,1706296268294,-150.0,0.00052055,30]
[312821138,1706296268303,-150.0,0.00052055,30]
[312821139,1706296268312,-294.89,0.00052055,30]
[312821140,1706296268321,-409.34,0.00052055,30]
[312821141,1706296268330,-150.0,0.00052055,30]
[312821142,1706296268340,-150.0,0.00052055,60]
[312821143,1706296268350,-419.27,0.00052055,30]
[312821144,1706296268360,-150.0,0.00052055,60]
[312821145,1706296268371,-294.89,0.00052055,30]
[312821146,1706296268381,-419.27,0.00052055,30]
[312821147,1706296268391,-150.0,0.00052055,30]
[312821148,1706296268401,-150.0,0.00052055,30]
[312821149,1706296268410,-150.0,0.00052055,30]
[312821150,1706296268420,-409.34,0.00052055,30]
[312821151,1706296268432,-409.34,0.00052055,30]
[312821152,1706296268441,-419.27,0.00052055,30]
[312821153,1706296268450,-294.89,0.00052055,30]
[312821154,1706296268459,-150.0,0.00052055,30]
[312821155,1706296268469,-150.0,0.00052055,30]
[312821156,1706296268479,-150.0,0.00052055,30]
[312821157,1706296268488,-150.0,0.00052055,30]
[312821158,1706296268499,-395.67,0.00052055,30]
[312821159,1706296268509,-280.42,0.00052055,30]
[312821160,1706296268520,-413.09,0.00052055,30]
[312821161,1706296268531,-150.0,0.00052055,30]
[312821162,1706296268540,-150.0,0.00052055,30]
[312821163,1706296268549,-150.0,0.00052055,30]
[312821164,1706296268558,-150.0,0.00052055,30]
[312821165,1706296268569,-150.0,0.00052055,30]
[312821166,1706296268580,-500.0,0.00052055,30]
[312821167,1706296268589,-1000.0,0.000521,2]
[312821168,1706296268598,-151.0127,0.00052198,29]
[312821169,1706296268607,-2215.7283053,0.000522,7]
[312821170,1706296268615,-928.156463,0.0005224,4]
[312821171,1706296268625,-5000.0,0.0005225,120]
[312821172,1706296268633,-5000.0,0.0005225,120]
[312821173,1706296268643,-2415.73821,0.000523,2]
[312821174,1706296268652,-171.06724829,0.00052329,3]
[312821175,1706296268661,-150.0,0.00052487,2]
[312821176,1706296268670,-151.0126,0.00052498,59]
[312821177,1706296268679,-105102.52391669,0.00052499,5]
[312821178,1706296268689,-476.78529856,0.000525,30]
[312821179,1706296268698,-5000.0,0.000525,120]
[312821180,1706296268707,-300.0,0.00052548,5]
[312821181,1706296268716,-300.0,0.00052548,5]
[312821182,1706296268725,-5000.0,0.00052625,120]
[312821183,1706296268735,-5000.0,0.00052625,120]
[312821184,1706296268745,-150.57471312,0.00052682,54]
[312821185,1706296268754,-2068.0,0.000527,30]
[312821186,1706296268763,-385.0,0.000527,30]
[312821187,1706296268772,-42399.0,0.000527,30]
[312821188,1706296268782,-390.15390898,0.00052739,120]
[312821189,1706296268791,-366.04607581,0.00052772,12]
[312821190,1706296268800,-284.08397793,0.00052772,12]
[312821191,1706296268810,-151.0126,0.00052798,59]
[312821192,1706296268820,-153.7,0.00052877,30]
[312821193,1706296268829,-150.0,0.00052877,30]
[312821194,1706296268838,-150.0,0.00052877,30]
[312821195,1706296268848,-150.0,0.00052877,30]
[312821196,1706296268857,-1092.16759673,0.000529,30]
[312821197,1706296268866,-100000.0,0.000529,30]
[312821198,1706296268875,-41147.39116012,0.000529,30]
[312821199,1706296268885,-1616.23989161,0.000529,30]
[312821200,1706296268896,-99999.00000001,0.000529,30]
[312821201,1706296268907,-2745.15371042,0.000529,14]
[312821202,1706296268917,-200.0,0.00052987,45]
[312821203,1706296268927,-200.0,0.00052987,35]
[312821204,1706296268937,-18433.50927285,0.00052998,7]
[312821205,1706296268946,-50000.0,0.00053,43]
[312821206,1706296268957,-250.0,0.00053,44]
[312821207,1706296268966,-467.2970793,0.00053,30]
[312821208,1706296268976,-250.0,0.00053,120]
[312821209,1706296268986,-788.0,0.00053,60]
[312821210,1706296268996,-2512.18970518,0.00053,120]
[312821211,1706296269005,-448.94519053,0.00053,120]
[312821212,1706296269015,-300.0,0.00053,54]
[312821213,1706296269025,-564.40060798,0.00053,2]
[312821214,1706296269035,-5000.0,0.00053,120]
[312821215,1706296269044,-300.0,0.00053,31]
[312821216,1706296269054,-5000.0,0.00053,120]
[312821217,1706296269063,-150.0,0.00053,31]
[312821218,1706296269074,-160.0,0.00053014,120]
[312821219,1706296269083,-300.0,0.00053096,5]
[312821220,1706296269093,-300.0,0.00053096,5]
[312821221,1706296269103,-160.0,0.00053178,120]
[312821222,1706296269113,-151.0127,0.00053198,29]
[312821223,1706296269124,-2068.0,0.00053243,30]
[312821224,1706296269133,-385.0,0.00053243,30]
[312821225,1706296269143,-42399.0,0.00053243,30]
[312821226,1706296269152,-561.18608661,0.0005326,120]
[312821227,1706296269162,-750.56,0.00053278,2]
[312821228,1706296269171,-1500.0,0.0005328,120]
[312821229,1706296269181,-5000.0,0.00053375,120]
[312821230,1706296269190,-5000.0,0.00053375,120]
[312821231,1706296269200,-150.57471312,0.00053427,57]